[Event "Centenario Panaderia Pulido 2023"]
[Site "San Mateo Gran Canaria"]
[Date "2023.12.07"]
[Round "6.13"]
[White "Rivero Castellano, Carlos Jesus"]
[Black "Camino Carrio, Nicanor"]
[Result "0-1"]
[ECO "A48"]
[WhiteElo "1726"]
[BlackElo "1948"]
[Annotator "RC"]
[PlyCount "135"]
[EventDate "2023.12.04"]
[EventType "swiss"]
[EventCountry "ESP"]
[SourceTitle "playchess.com"]
[Source "ChessBase"]
[SourceQuality "1"]
[TimeControl "5400+30"]

1. d4 {[%emt 0:00:28]} Nf6 {[%emt 0:01:46]} 2. Nf3 {[%emt 0:00:08]} g6 {[%emt 0:00:23]} 3. e3 {[%emt 0:00:30]} Bg7 {[%emt 0:00:13]} 4. Bd3 {[%emt 0:00:14]} O-O {[%emt 0:00:30]} 5. Nbd2 {[%emt 0:00:43]} d6 {[%emt 0:01:23]} 6. O-O {[%emt 0:00:49]} Nc6 {[%emt 0:00:12]} 7. c3 {[%emt 0:01:20]} e5 {[%emt 0:00:41]} 8. e4 {[%emt 0:01:16]} exd4 {[%emt 0:01:53]} 9. Nxd4 {[%emt 0:01:28]} Ne5 {[%emt 0:04:06]} 10. Bc2 {[%emt 0:00:13]} Nh5 {[%emt 0:02:51]} 11. f4 {[%emt 0:04:59]} c5 {[%emt 0:01:17]} 12. fxe5 {[%emt 0:05:07]} cxd4 {[%emt 0:00:09]} 13. cxd4 {[%emt 0:00:58]} dxe5 {[%emt 0:00:39]} 14. d5 {[%emt 0:01:24]} Bd7 {[%emt 0:02:31]} 15. Nb3 {[%emt 0:05:32]} Rc8 {[%emt 0:00:51]} 16. Bd3 {[%emt 0:02:00]} Qb6+ {[%emt 0:02:18]} 17. Kh1 {[%emt 0:01:48]} a5 {[%emt 0:01:22]} 18. Qe2 {[%emt 0:02:36]} a4 {[%emt 0:00:48]} 19. Be3 {[%emt 0:02:36]} Qd6 {[%emt 0:00:25]} 20. Na5 {[%emt 0:04:48]} Nf4 {[%emt 0:00:55]} 21. Bxf4 {[%emt 0:01:17]} exf4 {[%emt 0:00:09]} 22. Nc4 {[%emt 0:00:19]} Qb4 {[%emt 0:01:44]} 23. a3 {[%emt 0:01:15]} Qb3 {[%emt 0:03:05]} 24. e5 {[%emt 0:06:00]} b5 {[%emt 0:03:11]} 25. Nb6 {[%emt 0:00:52]} Rc7 {[%emt 0:07:04]} 26. d6 {[%emt 0:01:47]} Rb7 {[%emt 0:00:42]} 27. Nxd7 {[%emt 0:00:08]} Rxd7 {[%emt 0:00:12]} 28. Rf3 {[%emt 0:09:14]} Qd5 {[%emt 0:00:48]} 29. Rd1 {[%emt 0:07:04]} Qxe5 {[%emt 0:01:41]} 30. Qxe5 {[%emt 0:00:17]} Bxe5 {[%emt 0:00:07]} 31. Bxb5 {[%emt 0:00:18]} Rxd6 {[%emt 0:00:15]} 32. Rxd6 {[%emt 0:00:28]} Bxd6 {[%emt 0:00:10]} 33. Bxa4 {[%emt 0:00:15]} Rc8 {[%emt 0:03:13]} 34. Kg1 {[%emt 0:09:23]} Bc5+ {[%emt 0:01:15]} 35. Kf1 {[%emt 0:00:34]} Be3 {[%emt 0:00:06]} 36. g3 {[%emt 0:09:07]} g5 {[%emt 0:00:15]} 37. gxf4 {[%emt 0:01:11]} gxf4 {[%emt 0:01:20]} 38. Kg2 {[%emt 0:00:54]} Rd8 {[%emt 0:01:33]} 39. Kh3 {[%emt 0:02:15]} Rd2 {[%emt 0:00:24]} 40. b3 {[%emt 0:01:43]} Ra2 {[%emt 0:00:20]} 41. Rf1 {[%emt 0:01:01]} Rxa3 {[%emt 0:00:09]} 42. Kg4 {[%emt 0:00:38]} Ra2 {[%emt 0:00:26]} 43. h4 {[%emt 0:01:06]} Kg7 {[%emt 0:58:38]} 44. Bb5 {[%emt 0:03:10]} f5+ {[%emt 0:00:43]} 45. Kh5 {[%emt 0:01:03]} Kf6 {[%emt 0:04:25]} 46. Bc4 {[%emt 0:04:19]} Rh2 {[%emt 0:01:34]} 47. Bd5 {[%emt 0:02:28]} Ke5 {[%emt 0:02:12]} 48. Bg8 {[%emt 0:02:05]} Kf6 {[%emt 0:01:27]} 49. Bd5 {[%emt 0:00:12]} Rd2 {[%emt 0:00:28]} 50. Bg8 {[%emt 0:02:15]} Rd7 {[%emt 0:01:27]} 51. Ra1 {[%emt 0:02:58]} f3 {[%emt 0:01:19]} 52. Ra6+ {[%emt 0:00:18]} Ke5 {[%emt 0:00:18]} 53. Re6+ {[%emt 0:02:09]} Kf4 {[%emt 0:46:59]} 54. Rf6 {[%emt 0:00:43]} f2 {[%emt 0:04:44]} 55. Bc4 {[%emt 0:00:31]} Rd1 {[%emt 0:01:09]} 56. Kh6 {[%emt 0:00:40]} Ke5+ {[%emt 0:00:27]} 57. Kg7 {[%emt 0:00:05]} f1=Q {[%emt 0:00:46]} 58. Re6+ {[%emt 0:00:27]} Kf4 {[%emt 0:00:34]} 59. Bxf1 {[%emt 0:00:35]} Rxf1 {[%emt 0:00:09]} 60. h5 {[%emt 0:00:50]} Rh1 {[%emt 0:02:57]} 61. Kxh7 {[%emt 0:00:44]} Rxh5+ {[%emt 0:00:11]} 62. Kg6 {[%emt 0:00:15]} Rh2 {[%emt 0:01:47]} 63. Ra6 {[%emt 0:00:51]} Rg2+ {[%emt 0:00:00]} 64. Kf6 {[%emt 0:00:30]} Bd4+ {[%emt 0:00:00]} 65. Kf7 {[%emt 0:00:17]} Rg7+ {[%emt 0:01:30]} 66. Kf8 {[%emt 0:00:21]} Rb7 {[%emt 0:00:00]} 67. Ra4 {[%emt 0:00:23]} Ke3 {[%emt 0:02:30]} 68. Ke8 {[%emt 0:01:36]} 0-1

[Event "Centenario Panaderia Pulido 2023"]
[Site "San Mateo Gran Canaria"]
[Date "2023.12.07"]
[Round "6.14"]
[White "Garcia Rodriguez, Adriana"]
[Black "Guerrero Orihuela, Jose Luis"]
[Result "1/2-1/2"]
[ECO "B22"]
[WhiteElo "1659"]
[BlackElo "1901"]
[Annotator "RC"]
[PlyCount "106"]
[EventDate "2023.12.04"]
[EventType "swiss"]
[EventCountry "ESP"]
[SourceTitle "playchess.com"]
[Source "ChessBase"]
[SourceQuality "1"]
[TimeControl "5400+30"]

1. e4 {[%emt 1:31:00]} c5 {[%emt 0:00:48]} 2. c3 {[%emt 0:00:00]} Nf6 {[%emt 0:00:12]} 3. e5 {[%emt 0:00:00]} Nd5 {[%emt 0:00:09]} 4. d4 {[%emt 0:00:00]} cxd4 {[%emt 0:00:08]} 5. Nf3 {[%emt 0:00:00]} d6 {[%emt 0:00:47]} 6. cxd4 {[%emt 0:00:00]} Nc6 {[%emt 0:00:22]} 7. Bc4 {[%emt 0:00:00]} dxe5 {[%emt 0:04:43]} 8. dxe5 {[%emt 0:00:00]} Nb6 {[%emt 0:00:28]} 9. Qxd8+ {[%emt 0:00:00]} Nxd8 {[%emt 0:00:17]} 10. Bb3 {[%emt 0:00:00]} g6 {[%emt 0:04:00]} 11. Nc3 {[%emt 0:00:00]} Bg7 {[%emt 0:00:47]} 12. O-O {[%emt 0:00:00]} O-O {[%emt 0:06:38]} 13. a4 {[%emt 0:00:00]} Bg4 {[%emt 0:05:29]} 14. Bf4 {[%emt 0:00:00]} Nd7 {[%emt 0:05:10]} 15. Rad1 {[%emt 0:00:00]} Nc5 {[%emt 0:03:22]} 16. Ba2 {[%emt 0:00:00]} Nc6 {[%emt 0:00:18]} 17. Rfe1 {[%emt 0:00:00]} Rad8 {[%emt 0:08:27]} 18. Bd5 {[%emt 0:00:00]} Nb4 {[%emt 0:06:27]} 19. Bc4 {[%emt 0:00:00]} Nbd3 {[%emt 0:51:28]} 20. Bxd3 {[%emt 0:00:00]} Nxd3 {[%emt 0:00:00]} 21. Re4 {[%emt 0:10:00]} Bxf3 {[%emt 0:00:00]} 22. gxf3 {[%emt 0:00:00]} Nxf4 {[%emt 0:00:00]} 23. Rxf4 {[%emt 0:00:00]} Rxd1+ {[%emt 0:00:00]} 24. Nxd1 {[%emt 0:00:00]} Bxe5 {[%emt 0:00:00]} 25. Rb4 {[%emt 0:00:00]} Rd8 {[%emt 0:00:00]} 26. Ne3 {[%emt 0:00:00]} b6 {[%emt 0:00:00]} 27. a5 {[%emt 0:00:00]} Bd4 {[%emt 0:00:00]} 28. Nc4 {[%emt 0:00:00]} Bc5 {[%emt 0:00:00]} 29. Rb3 {[%emt 0:00:00]} bxa5 {[%emt 0:00:00]} 30. Rb5 {[%emt 0:00:00]} Rd5 {[%emt 0:00:00]} 31. Rxa5 {[%emt 0:00:00]} e6 {[%emt 0:00:00]} 32. Ra4 {[%emt 0:00:00]} Rd1+ {[%emt 0:00:00]} 33. Kg2 {[%emt 0:00:00]} Rc1 {[%emt 0:00:00]} 34. Na3 {[%emt 0:00:00]} Ra1 {[%emt 0:00:00]} 35. Ra5 {[%emt 0:00:00]} Bb6 {[%emt 0:00:00]} 36. Rb5 {[%emt 0:00:00]} Re1 {[%emt 0:00:00]} 37. Nc4 {[%emt 0:00:00]} Bd4 {[%emt 0:00:00]} 38. Rb8+ {[%emt 0:00:00]} Kg7 {[%emt 0:00:00]} 39. Nd6 {[%emt 0:00:00]} Be5 {[%emt 0:00:00]} 40. Ne8+ {[%emt 0:00:00]} Kh6 {[%emt 0:00:00]} 41. Rb7 {[%emt 0:00:00]} Ra1 {[%emt 0:00:00]} 42. Rb5 {[%emt 0:00:00]} Bd4 {[%emt 0:00:00]} 43. Nd6 {[%emt 0:00:00]} Kg7 {[%emt 0:01:50]} 44. Rb7 {[%emt 0:00:00]} Rb1 {[%emt 0:00:53]} 45. Rxf7+ {[%emt 0:00:00]} Kg8 {[%emt 0:00:06]} 46. Rd7 {[%emt 0:00:00]} Rxb2 {[%emt 0:03:28]} 47. Ne4 {[%emt 0:00:00]} Rb4 {[%emt 0:01:03]} 48. Ng5 {[%emt 0:00:00]} Bf6 {[%emt 0:01:35]} 49. Nxh7 {[%emt 0:00:00]} Bh4 {[%emt 0:00:54]} 50. Rxa7 {[%emt 0:00:00]} Rd4 {[%emt 0:01:13]} 51. Kh3 {[%emt 0:00:00]} Bd8 {[%emt 0:00:05]} 52. Kg3 {[%emt 0:00:00]} Bh4+ {[%emt 0:00:03]} 53. Kh3 {[%emt 0:00:00]} Bd8 {[%emt 0:00:02]} 1/2-1/2

[Event "Centenario Panaderia Pulido 2023"]
[Site "San Mateo Gran Canaria"]
[Date "2023.12.07"]
[Round "6.15"]
[White "Basualdo De Ornelas, Jorge"]
[Black "Garbezza, Davide"]
[Result "1/2-1/2"]
[ECO "B12"]
[WhiteElo "1624"]
[BlackElo "1860"]
[Annotator "NA RC"]
[PlyCount "109"]
[EventDate "2023.12.04"]
[EventType "swiss"]
[EventCountry "ESP"]
[SourceTitle "playchess.com"]
[Source "ChessBase"]
[SourceQuality "1"]
[TimeControl "5400+30"]

1. e4 {[%emt 1:31:00]} c6 {[%emt 0:01:21]} 2. d4 {[%emt 0:00:00]} d5 {[%emt 0:00:26]} 3. e5 {[%emt 0:00:00]} c5 {[%emt 0:00:10]} 4. dxc5 {[%emt 0:00:00]} e6 {[%emt 0:00:07]} 5. c3 {[%emt 0:00:00]} Bxc5 {[%emt 1:30:56]} 6. Qg4 {[%emt 0:02:30]} Bf8 {[%emt 0:00:00]} 7. Nf3 {[%emt 0:00:30]} Ne7 {[%emt 0:01:00]} 8. Bd3 {[%emt 0:00:30]} Ng6 {[%emt 0:00:00]} 9. O-O {[%emt 0:00:30]} Nc6 {[%emt 0:00:00]} 10. Re1 {[%emt 0:00:00]} Qc7 {[%emt 0:00:00]} 11. Qg3 {[%emt 0:00:00]} a6 {[%emt 0:00:00]} 12. h4 {[%emt 0:00:00]} Bd7 {[%emt 0:00:00]} 13. h5 {[%emt 0:00:00]} Nge7 {[%emt 0:03:00]} 14. Bf4 {[%emt 0:02:30]} Na5 {[%emt 0:00:00]} 15. Nbd2 Nc4 {[%emt 0:01:00]} 16. Bxc4 {[%emt 0:01:00]} dxc4 {[%emt 0:00:30]} 17. Ne4 {[%emt 0:00:30]} Nf5 {[%emt 0:00:00]} 18. Qh2 {[%emt 0:00:00]} Bc6 {[%emt 0:00:00]} 19. Nd6+ {[%emt 0:00:00]} Bxd6 {[%emt 0:00:00]} 20. exd6 {[%emt 0:00:00]} Qd8 {[%emt 0:00:00]} 21. Rad1 {[%emt 0:02:00]} O-O {[%emt 0:00:00]} 22. Nd4 {[%emt 0:00:00]} Nxd4 {[%emt 0:00:00]} 23. Rxd4 {[%emt 0:00:00]} Bd5 {[%emt 0:00:00]} 24. Qg3 {[%emt 0:00:00]} f6 {[%emt 0:00:00]} 25. Bh6 {[%emt 0:02:00]} Rf7 {[%emt 0:00:00]} 26. Rg4 {[%emt 0:00:00]} Qd7 {[%emt 0:00:00]} 27. Be3 {[%emt 0:02:22]} Kh8 {[%emt 0:00:00]} 28. h6 {[%emt 0:00:12]} g6 {[%emt 0:00:00]} 29. Bd4 {[%emt 0:00:47]} Rd8 {[%emt 0:00:00]} 30. Qf4 {[%emt 0:00:21]} e5 {[%emt 0:01:20]} 31. Rxe5 {[%emt 0:00:14]} Be6 {[%emt 0:01:43]} 32. Rg3 {[%emt 0:00:52]} Qxd6 {[%emt 0:00:45]} 33. Re4 {[%emt 0:00:34]} Qxf4 {[%emt 0:01:40]} 34. Rxf4 {[%emt 0:00:04]} Bf5 {[%emt 0:00:56]} 35. Re3 {[%emt 0:00:28]} Rdf8 {[%emt 0:00:20]} 36. g4 {[%emt 0:00:28]} Bd3 {[%emt 0:00:24]} 37. g5 {[%emt 0:00:06]} Kg8 {[%emt 0:00:10]} 38. Bxf6 {[%emt 0:00:20]} Rd7 {[%emt 0:00:40]} 39. Rd4 {[%emt 0:01:34]} Rxd4 {[%emt 0:00:31]} 40. cxd4 {[%emt 0:00:17]} Rf7 {[%emt 0:00:23]} 41. Re8+ {[%emt 0:00:22]} Rf8 {[%emt 0:00:01]} 42. Re3 {[%emt 0:00:52]} Rf7 {[%emt 0:00:09]} 43. Kh2 {[%emt 0:00:35]} Rd7 {[%emt 0:00:15]} 44. Kg3 {[%emt 0:00:21]} Kf7 {[%emt 0:00:25]} 45. Kf4 {[%emt 0:00:15]} Bb1 {[%emt 0:01:07]} 46. Ke5 {[%emt 0:00:47]} Bxa2 {[%emt 0:00:44]} 47. d5 {[%emt 0:00:36]} c3 {[%emt 0:00:27]} 48. bxc3 {[%emt 0:00:30]} Rxd5+ {[%emt 0:00:24]} 49. Kf4 {[%emt 0:00:05]} Rd7 {[%emt 0:00:03]} 50. Kg3 {[%emt 0:00:50]} Bc4 {[%emt 0:00:22]} 51. f4 {[%emt 0:00:33]} a5 {[%emt 0:00:00]} 52. Kf3 {[%emt 0:00:33]} a4 {[%emt 0:00:00]} 53. Re1 {[%emt 0:00:30]} a3 {[%emt 0:00:00]} 54. Bd4 {[%emt 0:00:17]} b5 {[%emt 0:00:24]} 55. Ke4 $19 {[%emt 0:01:15]} 1/2-1/2

[Event "Centenario Panaderia Pulido 2023"]
[Site "San Mateo Gran Canaria"]
[Date "2023.12.08"]
[Round "7.1"]
[White "Kurajica, Bojan"]
[Black "Korneev, Oleg"]
[Result "1/2-1/2"]
[ECO "A05"]
[WhiteElo "2446"]
[BlackElo "2470"]
[Annotator "RC"]
[PlyCount "21"]
[EventDate "2023.12.04"]
[EventType "swiss"]
[EventCountry "ESP"]
[SourceTitle "playchess.com"]
[Source "ChessBase"]
[SourceQuality "1"]
[TimeControl "5400+30"]

1. b3 {[%emt 0:02:15]} c5 {[%emt 0:00:13]} 2. Bb2 {[%emt 0:00:11]} Nc6 {[%emt 0:00:05]} 3. Nf3 {[%emt 0:00:11]} e6 {[%emt 0:00:14]} 4. g3 {[%emt 0:00:11]} Nf6 {[%emt 0:00:11]} 5. Bg2 {[%emt 0:00:06]} d5 {[%emt 0:01:15]} 6. O-O {[%emt 0:00:05]} Be7 {[%emt 0:00:02]} 7. e3 {[%emt 0:00:08]} O-O {[%emt 0:00:32]} 8. d3 {[%emt 0:00:05]} b6 {[%emt 0:00:06]} 9. Nbd2 {[%emt 0:00:06]} Bb7 {[%emt 0:00:03]} 10. Ne5 {[%emt 0:00:05]} Nxe5 {[%emt 0:00:04]} 11. Bxe5 {[%emt 0:00:05]} 1/2-1/2

[Event "Centenario Panaderia Pulido 2023"]
[Site "San Mateo Gran Canaria"]
[Date "2023.12.08"]
[Round "7.2"]
[White "Larino Nieto, David"]
[Black "Strikovic, Aleksa"]
[Result "1/2-1/2"]
[ECO "D35"]
[WhiteElo "2366"]
[BlackElo "2455"]
[Annotator "RC"]
[PlyCount "26"]
[EventDate "2023.12.04"]
[EventType "swiss"]
[EventCountry "ESP"]
[SourceTitle "playchess.com"]
[Source "ChessBase"]
[SourceQuality "1"]
[TimeControl "5400+30"]

1. d4 {[%emt 0:01:49]} d5 {[%emt 0:00:18]} 2. c4 {[%emt 0:00:06]} e6 {[%emt 0:00:08]} 3. Nc3 {[%emt 0:00:26]} Nf6 {[%emt 0:00:09]} 4. cxd5 {[%emt 0:00:30]} exd5 {[%emt 0:00:07]} 5. Bf4 {[%emt 0:00:08]} Bd6 {[%emt 0:00:17]} 6. Bxd6 {[%emt 0:00:38]} Qxd6 {[%emt 0:00:09]} 7. e3 {[%emt 0:00:06]} Bf5 {[%emt 0:00:53]} 8. Bd3 {[%emt 0:00:13]} Bxd3 {[%emt 0:00:08]} 9. Qxd3 {[%emt 0:00:06]} c6 {[%emt 0:00:06]} 10. Nf3 {[%emt 0:00:15]} Nbd7 {[%emt 0:00:07]} 11. O-O {[%emt 0:00:11]} O-O {[%emt 1:33:38]} 12. Nd2 {[%emt 1:32:02]} Ne4 13. Nf3 Nb8 {[%emt 0:01:00]} 1/2-1/2

[Event "Centenario Panaderia Pulido 2023"]
[Site "San Mateo Gran Canaria"]
[Date "2023.12.08"]
[Round "7.3"]
[White "Oudeh Mishmesh, Omar"]
[Black "Yao, Stefano"]
[Result "1/2-1/2"]
[ECO "C09"]
[WhiteElo "2247"]
[BlackElo "2288"]
[Annotator "RC"]
[PlyCount "47"]
[EventDate "2023.12.04"]
[EventType "swiss"]
[EventCountry "ESP"]
[SourceTitle "playchess.com"]
[Source "ChessBase"]
[SourceQuality "1"]
[TimeControl "5400+30"]

1. e4 {[%emt 0:00:07]} e6 {[%emt 1:31:00]} 2. d4 {[%emt 0:00:12]} d5 {[%emt 0:00:00]} 3. Nd2 {[%emt 0:00:18]} c5 {[%emt 0:00:00]} 4. exd5 {[%emt 0:00:51]} exd5 {[%emt 0:00:00]} 5. Ngf3 {[%emt 0:00:12]} Nc6 {[%emt 0:00:00]} 6. Bb5 {[%emt 0:00:40]} Qe7+ {[%emt 0:00:00]} 7. Be2 {[%emt 0:00:06]} Qc7 {[%emt 0:00:00]} 8. O-O {[%emt 0:00:30]} Nf6 {[%emt 0:00:00]} 9. Re1 {[%emt 0:00:17]} cxd4 {[%emt 0:00:00]} 10. Nb3 {[%emt 0:03:57]} Bb4 {[%emt 0:00:00]} 11. Bd2 {[%emt 0:06:38]} Bxd2 {[%emt 0:00:00]} 12. Qxd2 {[%emt 0:00:08]} O-O {[%emt 0:00:00]} 13. Bd3 {[%emt 0:07:29]} Bg4 {[%emt 0:00:00]} 14. Nfxd4 {[%emt 0:09:48]} Rad8 {[%emt 0:00:00]} 15. h3 {[%emt 0:12:18]} Bd7 {[%emt 0:00:00]} 16. Nxc6 {[%emt 0:02:42]} Bxc6 {[%emt 0:00:00]} 17. Nd4 {[%emt 0:00:56]} h6 {[%emt 0:00:00]} 18. c3 {[%emt 0:04:48]} Rfe8 {[%emt 0:00:00]} 19. Rxe8+ {[%emt 0:06:47]} Rxe8 {[%emt 0:09:00]} 20. Re1 {[%emt 0:00:13]} Re5 {[%emt 0:00:00]} 21. Rxe5 {[%emt 0:03:28]} Qxe5 {[%emt 0:00:00]} 22. Qe2 {[%emt 0:00:34]} Qxe2 {[%emt 0:00:00]} 23. Bxe2 {[%emt 0:05:33]} Kf8 {[%emt 0:00:00]} 24. Bd3 {[%emt 0:33:58]} 1/2-1/2

[Event "Centenario Panaderia Pulido 2023"]
[Site "San Mateo Gran Canaria"]
[Date "2023.12.08"]
[Round "7.4"]
[White "Calzetta Ruiz, Monica"]
[Black "Doluhanova, Evgeniya"]
[Result "0-1"]
[ECO "C67"]
[WhiteElo "2239"]
[BlackElo "2177"]
[Annotator "RC"]
[PlyCount "118"]
[EventDate "2023.12.04"]
[EventType "swiss"]
[EventCountry "ESP"]
[SourceTitle "playchess.com"]
[Source "ChessBase"]
[SourceQuality "1"]
[TimeControl "5400+30"]

1. e4 {[%emt 0:00:50]} e5 {[%emt 0:00:05]} 2. Nf3 {[%emt 0:00:13]} Nc6 {[%emt 0:00:06]} 3. Bb5 {[%emt 0:00:08]} Nf6 {[%emt 0:00:04]} 4. O-O {[%emt 0:00:52]} Nxe4 {[%emt 0:00:04]} 5. Re1 {[%emt 0:00:06]} Nd6 {[%emt 0:00:10]} 6. Nxe5 {[%emt 0:00:07]} Be7 {[%emt 0:00:34]} 7. Bf1 {[%emt 0:00:30]} Nxe5 {[%emt 0:00:19]} 8. Rxe5 {[%emt 0:00:05]} O-O {[%emt 0:00:08]} 9. d4 {[%emt 0:00:28]} Bf6 {[%emt 0:00:41]} 10. Bd3 {[%emt 0:01:14]} g6 {[%emt 0:01:32]} 11. Bh6 {[%emt 0:00:52]} Bg7 {[%emt 0:04:36]} 12. Bxg7 {[%emt 0:01:08]} Kxg7 {[%emt 0:00:05]} 13. Nc3 {[%emt 0:00:39]} Ne8 {[%emt 0:00:42]} 14. Qf3 {[%emt 0:25:14]} d6 {[%emt 0:05:07]} 15. Re3 {[%emt 0:01:44]} Nf6 {[%emt 0:02:16]} 16. Rae1 {[%emt 0:03:21]} c6 {[%emt 0:07:37]} 17. h3 {[%emt 0:26:59]} Be6 {[%emt 0:04:28]} 18. Qg3 {[%emt 0:06:43]} Qb6 {[%emt 0:10:09]} 19. Qxd6 {[%emt 0:00:12]} Rad8 {[%emt 0:03:12]} 20. Qc5 {[%emt 0:02:24]} Rxd4 {[%emt 0:13:34]} 21. Qe5 {[%emt 0:00:23]} Re8 {[%emt 0:00:15]} 22. Ne4 {[%emt 0:06:42]} Qd8 {[%emt 0:02:13]} 23. g4 {[%emt 0:07:04]} h6 {[%emt 0:03:04]} 24. f4 {[%emt 0:01:59]} Bxa2 {[%emt 0:09:19]} 25. Qxf6+ {[%emt 0:02:28]} Qxf6 {[%emt 0:00:07]} 26. Nxf6 {[%emt 0:00:04]} Rxe3 {[%emt 0:00:05]} 27. Rxe3 {[%emt 0:00:19]} Kxf6 {[%emt 0:00:07]} 28. f5 {[%emt 0:01:32]} Bc4 {[%emt 0:05:34]} 29. fxg6 {[%emt 0:00:41]} fxg6 {[%emt 0:00:10]} 30. Be4 {[%emt 0:03:24]} Kg5 {[%emt 0:03:16]} 31. Re1 {[%emt 0:00:59]} Rd2 {[%emt 0:01:00]} 32. b3 {[%emt 0:02:10]} Bd5 {[%emt 0:01:32]} 33. Bxd5 {[%emt 0:00:28]} cxd5 {[%emt 0:07:53]} 34. Re7 {[%emt 0:00:02]} Rxc2 {[%emt 0:00:30]} 35. Rxb7 {[%emt 0:00:02]} Rb2 {[%emt 0:00:15]} 36. Rxa7 {[%emt 0:01:42]} Rxb3 {[%emt 0:00:05]} 37. Rd7 {[%emt 0:00:11]} Rxh3 {[%emt 0:00:52]} 38. Rxd5+ {[%emt 0:00:04]} Kxg4 {[%emt 0:00:06]} 39. Rd4+ {[%emt 0:02:35]} Kf5 {[%emt 0:00:28]} 40. Ra4 {[%emt 0:00:07]} g5 {[%emt 0:01:08]} 41. Ra6 {[%emt 0:00:55]} g4 {[%emt 0:01:07]} 42. Kg2 {[%emt 0:00:21]} Kg5 {[%emt 0:00:37]} 43. Ra5+ {[%emt 0:00:13]} Kh4 {[%emt 0:00:12]} 44. Rb5 {[%emt 0:00:44]} Rg3+ {[%emt 0:00:35]} 45. Kh2 {[%emt 0:00:09]} Ra3 {[%emt 0:00:19]} 46. Rb2 {[%emt 0:00:53]} h5 {[%emt 0:00:07]} 47. Kg2 {[%emt 0:00:15]} Ra5 {[%emt 0:00:06]} 48. Rc2 {[%emt 0:00:28]} Kg5 {[%emt 0:00:07]} 49. Rb2 {[%emt 0:00:21]} h4 {[%emt 0:00:06]} 50. Rc2 {[%emt 0:00:22]} h3+ {[%emt 0:00:07]} 51. Kh2 {[%emt 0:02:31]} Kh4 {[%emt 0:00:08]} 52. Rc1 {[%emt 0:00:27]} Ra2+ {[%emt 0:00:53]} 53. Kh1 {[%emt 0:00:10]} g3 {[%emt 0:00:58]} 54. Rc4+ {[%emt 0:00:39]} Kg5 {[%emt 0:00:05]} 55. Rc1 {[%emt 0:00:12]} Rd2 {[%emt 0:00:24]} 56. Ra1 {[%emt 0:00:04]} Kf4 {[%emt 0:00:13]} 57. Rf1+ {[%emt 0:01:49]} Ke3 {[%emt 0:01:23]} 58. Re1+ {[%emt 0:01:35]} Kf2 {[%emt 0:00:26]} 59. Ra1 {[%emt 0:00:31]} Ke2 {[%emt 0:00:09]} 0-1

[Event "Centenario Panaderia Pulido 2023"]
[Site "San Mateo Gran Canaria"]
[Date "2023.12.08"]
[Round "7.5"]
[White "Gimenez Menchon, Cesar"]
[Black "Hernando Rodrigo, Jose Maria"]
[Result "0-1"]
[ECO "B07"]
[WhiteElo "2088"]
[BlackElo "2278"]
[Annotator "RC"]
[PlyCount "88"]
[EventDate "2023.12.04"]
[EventType "swiss"]
[EventCountry "ESP"]
[SourceTitle "playchess.com"]
[Source "ChessBase"]
[SourceQuality "1"]
[TimeControl "5400+30"]

1. e4 {[%emt 0:00:04]} d6 {[%emt 0:02:17]} 2. d4 {[%emt 0:00:06]} Nd7 {[%emt 0:00:09]} 3. Nc3 {[%emt 0:00:21]} a6 {[%emt 0:00:33]} 4. f4 {[%emt 0:03:10]} e5 {[%emt 0:04:54]} 5. Nf3 {[%emt 0:00:21]} Ngf6 {[%emt 0:04:20]} 6. Bc4 {[%emt 0:40:41]} b5 {[%emt 0:28:41]} 7. Bxf7+ {[%emt 0:08:12]} Kxf7 {[%emt 0:00:46]} 8. dxe5 {[%emt 0:00:06]} dxe5 {[%emt 0:03:25]} 9. fxe5 {[%emt 0:01:29]} Bc5 {[%emt 0:04:43]} 10. Ng5+ {[%emt 0:07:11]} Kg6 {[%emt 0:06:09]} 11. Ne6 {[%emt 0:06:05]} Qe7 {[%emt 0:00:26]} 12. Nd5 {[%emt 0:07:40]} Nxd5 {[%emt 0:00:43]} 13. Qxd5 {[%emt 0:04:09]} h6 {[%emt 0:08:37]} 14. Nf4+ {[%emt 0:00:44]} Kh7 {[%emt 0:00:22]} 15. Qxa8 {[%emt 0:00:20]} Nxe5 {[%emt 0:00:53]} 16. Bd2 {[%emt 0:03:32]} Nc4 {[%emt 0:15:17]} 17. Qc6 {[%emt 0:00:45]} Rd8 {[%emt 0:02:33]} 18. Qg6+ {[%emt 0:02:07]} Kg8 {[%emt 0:00:29]} 19. Bc3 {[%emt 0:04:52]} Rd6 {[%emt 0:03:56]} 20. Qxg7+ {[%emt 0:07:52]} Qxg7 {[%emt 0:00:09]} 21. Bxg7 {[%emt 0:00:03]} Kxg7 {[%emt 0:00:10]} 22. Rd1 {[%emt 0:00:56]} Nxb2 {[%emt 0:01:13]} 23. Rxd6 {[%emt 0:00:19]} Bxd6 {[%emt 0:00:12]} 24. O-O {[%emt 0:00:31]} Nc4 {[%emt 0:01:07]} 25. Nh5+ {[%emt 0:00:43]} Kg6 {[%emt 0:00:39]} 26. Nf4+ {[%emt 0:00:08]} Kh7 {[%emt 0:00:14]} 27. Nd5 {[%emt 0:00:36]} Kg7 {[%emt 0:01:31]} 28. Rf3 {[%emt 0:00:43]} Bg4 {[%emt 0:01:27]} 29. Rd3 {[%emt 0:00:03]} Be2 {[%emt 0:00:35]} 30. Rh3 {[%emt 0:00:47]} Bd1 {[%emt 0:00:47]} 31. c3 {[%emt 0:00:47]} Bc2 {[%emt 0:00:36]} 32. Rh4 {[%emt 0:00:25]} Be5 {[%emt 0:00:11]} 33. Rg4+ {[%emt 0:00:30]} Kh7 {[%emt 0:02:07]} 34. h3 {[%emt 0:00:35]} a5 {[%emt 0:00:14]} 35. Ne7 {[%emt 0:00:31]} a4 {[%emt 0:01:11]} 36. Ng6 {[%emt 0:00:23]} Bg7 {[%emt 0:00:05]} 37. h4 {[%emt 0:00:37]} Ne5 {[%emt 0:00:57]} 38. Nxe5 {[%emt 0:00:06]} Bxe5 {[%emt 0:00:06]} 39. h5 {[%emt 0:00:27]} Bxc3 {[%emt 0:00:42]} 40. Rf4 {[%emt 0:00:21]} b4 {[%emt 0:01:07]} 41. Rf7+ {[%emt 0:00:41]} Kg8 {[%emt 0:00:07]} 42. Rxc7 {[%emt 0:00:07]} Bd4+ {[%emt 0:00:04]} 43. Kh1 {[%emt 0:00:08]} b3 {[%emt 0:00:14]} 44. axb3 {[%emt 0:00:56]} axb3 {[%emt 0:00:08]} 0-1